bitfinex-derivatives/quotes_ETHF0:USTF0_20240920
["timestamp","ask_amount","ask_price","bid_price","bid_amount"]
[1726828515604,0.39195,2550.9,2550.8,0.79317]
[1726828516410,0.39195,2550.9,2550.8,0.4012]
[1726828517307,0.39195,2550.9,2550.8,0.79317]
[1726828519521,0.39195,2551.0,2550.9,0.39195]
[1726828520216,3.59973,2551.1,2551.0,0.39194]
[1726828520612,0.39194,2551.0,2550.9,3.45195]
[1726828522908,1.3718,2551.0,2550.8,0.79316]
[1726828523224,0.39198,2550.8,2550.7,0.39197]
[1726828523722,0.77598,2550.8,2550.7,0.39197]
[1726828524810,0.392,2550.7,2550.6,0.39199]
[1726828525518,0.392,2550.6,2550.5,0.4073]
[1726828525720,1.36397,2550.8,2550.4,4.198]
[1726828525721,1.37207,2550.5,2550.4,4.198]
[1726828525920,0.39206,2550.2,2550.1,0.39207]
[1726828526114,0.39209,2550.1,2550.0,0.39208]
[1726828526429,0.39205,2550.4,2550.3,0.39204]
[1726828526622,0.39205,2550.3,2550.2,3.45205]
[1726828527220,0.39205,2550.3,2550.2,0.39206]
[1726828527615,0.77475,2550.3,2550.2,0.39206]
[1726828528829,0.39206,2550.2,2550.1,3.45206]
[1726828529030,0.39211,2550.0,2549.9,3.06]
[1726828529325,1.37235,2550.0,2549.9,3.06]
[1726828529724,1.37235,2550.0,2549.7,3.59993]
[1726828529725,0.39212,2549.8,2549.7,3.06]
[1726828530128,0.77482,2549.8,2549.7,3.06]
[1726828530327,0.77482,2549.8,2549.7,3.45214]
[1726828530522,0.3827,2549.8,2549.7,3.45214]
[1726828531225,0.39212,2549.9,2549.8,0.39211]
[1726828531420,0.39212,2549.9,2549.8,3.45211]
[1726828532729,0.39212,2549.9,2549.8,3.06]
[1726828533731,0.39212,2549.9,2549.8,3.45212]
[1726828534032,0.78919,2550.1,2550.0,0.39209]
[1726828534233,0.78918,2550.1,2550.0,3.45209]
[1726828534424,0.3971,2550.1,2550.0,3.45209]
[1726828534624,0.78918,2550.1,2550.0,4.24599]
[1726828534826,0.3971,2550.1,2550.0,4.24599]
[1726828535633,0.78918,2550.1,2550.0,4.24599]
[1726828536246,0.78918,2550.1,2550.0,3.84739]
[1726828536435,0.78918,2550.1,2550.0,0.39209]
[1726828536624,0.39209,2550.0,2549.9,3.06]
[1726828536938,0.39212,2549.9,2549.8,0.3921]
[1726828537124,0.79292,2549.9,2549.8,0.3921]
[1726828537330,0.39212,2549.8,2549.7,3.06]
[1726828537523,0.39212,2549.8,2549.7,3.45214]
[1726828537728,0.79292,2549.9,2549.8,0.39212]
[1726828540135,0.3971,2550.1,2549.8,3.9216]
[1726828540338,0.39207,2550.2,2550.1,0.39206]
[1726828541731,0.39208,2550.1,2550.0,0.80388]
[1726828543335,0.39207,2550.2,2550.1,0.39206]
[1726828547846,0.39208,2550.1,2550.0,0.80388]
[1726828548135,0.39207,2550.2,2550.1,0.39208]
[1726828548732,0.77626,2550.3,2550.2,0.39206]
[1726828548931,3.5999,2550.4,2550.2,0.39206]
[1726828548932,0.3921,2550.4,2550.3,0.39205]
[1726828549233,0.39203,2550.5,2550.4,0.39202]
[1726828549639,0.39203,2550.4,2550.3,3.82714]
[1726828549936,0.39203,2550.4,2550.3,0.39204]
[1726828558838,0.39206,2550.3,2550.2,0.39205]
[1726828559037,0.39206,2550.3,2549.9,3.4351]
[1726828559237,0.39206,2550.3,2549.9,0.76719]
[1726828559238,0.39209,2550.0,2549.9,0.76719]
[1726828560248,0.39209,2550.0,2549.9,0.3751]
[1726828560439,0.98021,2550.1,2549.8,0.77251]
[1726828560440,0.39211,2549.9,2549.8,0.77251]
[1726828560635,0.39211,2549.9,2549.8,0.3804]
[1726828561154,1.39391,2550.1,2549.9,0.3921]
[1726828561155,0.3921,2550.0,2549.9,0.3921]
[1726828561748,0.39212,2549.8,2549.7,3.45213]
[1726828561939,0.98025,2550.0,2549.7,3.06]
[1726828562247,0.39212,2549.8,2549.7,3.45213]
[1726828563149,0.39212,2549.9,2549.8,0.39212]
[1726828563937,0.39212,2549.8,2549.7,3.45213]
[1726828564544,0.39212,2549.8,2549.7,3.06]
[1726828564849,0.39215,2549.6,2549.5,3.06]
[1726828565238,0.39215,2549.6,2549.5,7.37457]
[1726828565440,0.39215,2549.6,2549.5,3.45217]
[1726828565654,0.77935,2549.7,2549.6,0.39215]
[1726828566248,0.39215,2549.6,2549.5,3.45216]
[1726828566654,0.77233,2549.8,2549.7,0.39214]
[1726828566841,0.3802,2549.8,2549.7,3.45214]
[1726828568540,0.77232,2549.8,2549.7,3.45214]
[1726828569552,0.39207,2550.2,2549.8,0.98032]
[1726828569750,3.2078,2550.4,2550.2,0.39205]
[1726828569751,0.39205,2550.3,2550.2,0.39205]
[1726828570351,1.18324,2550.4,2550.3,0.39205]
[1726828570550,1.18323,2550.4,2550.3,0.39205]
[1726828572156,0.39202,2550.5,2550.4,0.39203]
[1726828572546,1.19211,2550.6,2550.5,0.39202]
[1726828572741,0.39202,2550.5,2550.4,0.39202]
[1726828572945,0.39202,2550.5,2550.4,0.80002]
[1726828573453,0.8001,2550.6,2550.4,0.408]
[1726828573654,0.39202,2550.5,2550.4,0.80002]
[1726828575254,1.19211,2550.6,2550.5,0.39202]
[1726828576351,0.8001,2550.6,2550.5,0.39202]
[1726828576552,0.97988,2551.0,2550.9,0.39195]
[1726828576553,3.59975,2551.0,2550.9,0.39195]
[1726828576762,3.2078,2551.0,2550.9,0.39195]
[1726828576958,3.59974,2551.0,2550.9,0.39195]
[1726828577156,3.2078,2551.0,2550.9,1.56505]
[1726828578056,3.59974,2551.0,2550.9,1.56505]
[1726828578357,4.18766,2551.0,2550.6,4.08213428]
[1726828578558,0.39198,2550.8,2550.7,0.39197]
[1726828580266,0.39199,2550.7,2550.6,0.7699]
[1726828580456,0.80349,2550.7,2550.6,0.7699]
[1726828581666,0.4115,2550.7,2550.6,0.7699]
[1726828582664,0.4115,2550.7,2550.6,3.8299]
[1726828582961,0.39197,2550.8,2550.7,0.39199]
[1726828583159,0.80176,2550.9,2550.8,0.39197]
[1726828584557,0.39199,2550.8,2550.7,0.39197]
[1726828584969,0.39199,2550.7,2550.6,0.76989]
[1726828585154,0.79029,2550.7,2550.6,0.39199]
[1726828596166,1.77026,2550.7,2550.6,0.39199]
[1726828596367,2.18376,2550.7,2550.6,0.39199]
[1726828597365,0.79029,2550.7,2550.6,0.39199]
[1726828599968,3.99809,2550.7,2550.6,0.39199]
[1726828600168,0.79029,2550.7,2550.6,0.39199]
[1726828601571,0.39198,2550.8,2550.7,0.39197]
[1726828601772,3.2078,2551.2,2550.8,0.97993]
[1726828601973,0.39194,2551.1,2551.0,0.39192]
[1726828602765,3.59972,2551.2,2551.1,0.39192]
[1726828603774,0.39194,2551.1,2551.0,0.39192]
[1726828606074,1.37176,2551.1,2551.0,0.39192]
[1726828607077,0.39195,2550.9,2550.8,0.77777]
[1726828607279,3.59975,2550.9,2550.8,0.77777]
[1726828607675,0.39195,2550.9,2550.8,0.77777]
[1726828608075,1.37184,2550.9,2550.8,0.77777]
[1726828608379,0.80525,2550.9,2550.8,0.77777]
[1726828609578,0.39195,2551.0,2550.9,0.39194]
[1726828609781,0.39193,2551.1,2551.0,0.39192]
[1726828611875,4.18758,2551.2,2551.1,0.39192]
[1726828611876,3.59972,2551.2,2551.1,0.39192]
[1726828613067,4.5795,2551.2,2551.1,0.39192]
[1726828613267,0.39194,2551.1,2550.8,0.3858]
[1726828613473,1.37181,2551.0,2550.9,0.39194]
[1726828613674,0.39195,2550.9,2550.8,0.3858]
[1726828615384,0.39195,2550.9,2550.8,0.77776]
[1726828615776,1.37184,2550.9,2550.8,0.77776]
[1726828616482,1.37184,2550.9,2550.8,0.39196]
[1726828616673,1.78174,2550.9,2550.8,0.39196]
[1726828617077,0.80185,2550.9,2550.8,0.39196]
[1726828617274,0.80185,2550.9,2550.8,1.41409428]
[1726828617783,0.39195,2550.9,2550.8,1.41409428]
[1726828619482,1.37184,2550.9,2550.8,1.41409428]
[1726828619683,1.3719,2550.8,2550.7,0.39197]
[1726828619977,1.3719,2550.8,2550.6,0.39199]
[1726828619978,1.37196,2550.7,2550.6,0.39199]
[1726828620279,0.392,2550.6,2550.5,0.7651]
[1726828620686,1.37201,2550.6,2550.5,0.7651]
[1726828623584,0.7891,2550.7,2550.6,0.392]
[1726828623788,0.39199,2550.7,2550.6,0.392]
[1726828624380,4.59729,2550.9,2550.7,0.39197]
[1726828624381,0.39198,2550.8,2550.7,0.39197]
[1726828625585,0.392,2550.7,2550.6,0.39199]
[1726828625788,0.789,2550.7,2550.6,0.39199]
[1726828626082,0.39198,2550.8,2550.7,0.39197]
[1726828626485,0.392,2550.7,2550.6,0.39199]
[1726828626681,1.76897,2550.7,2550.6,0.39199]
[1726828627177,1.76897,2550.7,2550.6,1.02597478]
[1726828627379,1.37201,2550.6,2550.5,1.39907478]
[1726828627577,1.37201,2550.6,2550.5,0.3731]
[1726828628172,1.37201,2550.6,2550.5,0.76512]
[1726828628581,0.392,2550.6,2550.5,0.76512]
[1726828629687,1.37201,2550.6,2550.5,0.3731]
[1726828629983,1.37201,2550.6,2550.2,1.02597478]
[1726828629984,1.37212,2550.4,2550.2,1.02597478]
[1726828630188,0.39205,2550.3,2550.2,1.41802478]
[1726828630383,0.80495,2550.3,2550.2,0.39205]
[1726828630983,0.80496,2550.3,2550.2,0.39206]
[1726828631180,0.80496,2550.3,2550.2,1.41805483]
[1726828631389,0.80496,2550.3,2550.2,0.39206]
[1726828631588,0.80496,2550.3,2550.1,1.81179483]
[1726828631589,0.39206,2550.2,2550.1,2.20386483]
[1726828631776,0.39206,2550.2,2550.1,3.87026881]
[1726828631980,0.39206,2550.2,2550.1,2.20386483]
[1726828632177,0.39206,2550.2,2550.1,1.81179483]
[1726828632376,0.39206,2550.2,2550.1,2.20387483]
[1726828634397,0.39206,2550.2,2550.1,1.17788]
[1726828638590,0.39208,2550.1,2549.9,1.02599483]
[1726828638789,0.39209,2550.0,2549.9,0.39209]
[1726828640484,1.37233,2550.0,2549.9,0.39209]
[1726828640687,0.3969,2550.1,2549.8,0.7831]
[1726828640898,0.98032,2549.8,2549.5,5.22399483]
[1726828641085,1.37254,2549.6,2549.5,4.198]
[1726828641288,0.39215,2549.6,2549.5,4.59017]
[1726828641487,3.6022,2549.9,2549.8,0.39212]
[1726828642001,0.3944,2549.9,2549.8,0.39212]
[1726828642297,0.39214,2549.8,2549.7,0.39213]
[1726828647900,0.78652,2549.9,2549.8,0.39212]
[1726828648092,0.78652,2549.9,2549.6,0.3925]
[1726828648093,0.39214,2549.8,2549.6,0.3925]
[1726828648398,0.3944,2549.9,2549.6,1.8025]
[1726828648594,0.3834,2550.1,2550.0,0.39209]
[1726828648791,0.77548,2550.1,2550.0,0.39209]
[1726828649397,0.77548,2550.1,2550.0,0.77859]
[1726828650100,1.75568,2550.1,2550.0,0.77859]
[1726828651496,1.75568,2550.1,2550.0,0.39209]
[1726828652087,0.39208,2550.1,2550.0,0.39209]
[1726828652294,0.39206,2550.3,2550.2,0.39205]
[1726828653391,0.79286,2550.3,2550.2,0.39205]
[1726828657901,0.4008,2550.3,2550.2,0.39205]
[1726828658108,0.3754,2550.7,2550.3,0.39205]
[1726828658305,3.59977,2550.8,2550.7,0.39199]
[1726828659205,3.2078,2550.8,2550.7,0.39199]
[1726828659401,0.382,2550.9,2550.8,0.39197]
[1726828659605,4.37662,2551.2,2550.8,0.39197]
[1726828659606,3.98662,2551.2,2551.1,0.39192]
[1726828659805,3.5947,2551.2,2550.9,0.8134]
[1726828660105,3.98662,2551.2,2551.1,0.39192]
[1726828660405,3.5947,2551.2,2551.1,0.39192]
[1726828661808,3.98662,2551.2,2551.0,0.39193]
[1726828662309,3.98662,2551.2,2551.1,0.39192]
[1726828662507,3.98662,2551.2,2550.9,0.8134]
[1726828662508,3.98662,2551.2,2551.0,0.39193]
[1726828662709,3.98662,2551.2,2551.1,0.39192]
[1726828662905,3.5947,2551.2,2551.1,0.39192]
[1726828663303,3.98661,2551.2,2551.1,0.39192]
[1726828663809,3.5947,2551.2,2551.1,0.39192]
[1726828664710,3.98661,2551.2,2551.1,0.39192]
[1726828665414,3.2078,2551.2,2551.1,0.39192]
[1726828668000,3.2078,2551.6,2551.1,13.95982]
[1726828668204,3.2078,2551.6,2551.5,0.39186]
[1726828669101,0.3896,2551.8,2551.4,0.97969]
[1726828669302,3.2078,2552.2,2552.0,0.39178]
[1726828669510,3.2078,2552.2,2551.4,5.69529]
[1726828669511,3.2078,2552.2,2551.7,4.03957]
[1726828669721,3.2078,2552.2,2552.1,0.39177]
[1726828670610,0.39178,2552.1,2552.0,0.39178]
[1726828670815,3.2078,2552.8,2552.0,3.06]
[1726828671115,3.2078,2552.8,2552.0,3.4]
[1726828671116,0.39175,2552.3,2552.0,3.4]
[1726828671617,0.39175,2552.3,2552.2,0.39176]
[1726828671810,0.39174,2552.3,2552.1,0.39176]
[1726828672006,6.2678,2552.5,2552.0,3.4]
[1726828672310,0.39174,2552.3,2552.1,0.39176]
[1726828672513,0.39174,2552.3,2552.2,0.39176]
[1726828674112,0.39177,2552.1,2552.0,0.39177]
[1726828674325,0.8033,2552.2,2551.9,0.4107]
[1726828674518,0.39179,2552.0,2551.9,0.80249]
[1726828674818,0.39179,2552.0,2551.9,0.4107]
[1726828675122,0.78088,2552.1,2552.0,0.39179]
[1726828675309,0.78088,2552.1,2551.9,0.80249]
[1726828675515,0.3891,2552.1,2551.9,0.4107]
[1726828675709,0.39179,2552.0,2551.8,0.3833]
[1726828676008,0.3918,2551.9,2551.8,0.39181]
[1726828676216,0.39184,2551.7,2551.6,0.39184]
[1726828676615,1.1924,2552.5,2551.8,0.97954]
[1726828676819,1.1924,2552.5,2552.0,0.97947]
[1726828677017,1.58412,2552.5,2552.3,0.39174]
[1726828677215,0.39172,2552.4,2552.3,0.39174]
[1726828677414,1.58412,2552.5,2552.3,0.39174]
[1726828677616,0.39172,2552.4,2552.3,0.39174]
[1726828677913,1.1924,2552.5,2552.4,0.39172]
[1726828678225,1.1924,2552.5,2552.3,0.39173]
[1726828678226,1.58412,2552.5,2552.3,0.39173]
[1726828678427,1.58412,2552.5,2552.4,0.39172]
[1726828678428,1.1924,2552.5,2552.4,0.39172]
[1726828679119,1.58412,2552.5,2552.3,3.45173]
[1726828679423,1.58412,2552.5,2552.4,0.39172]
[1726828679619,1.1924,2552.5,2552.3,3.06]
[1726828679817,1.58412,2552.5,2552.4,0.39172]
[1726828680224,1.58412,2552.5,2552.3,3.45173]
[1726828680521,1.58412,2552.5,2552.4,0.39172]
[1726828680918,1.58411,2552.5,2552.4,0.39172]
[1726828681830,1.58411,2552.5,2552.3,3.45173]
[1726828682126,1.1924,2552.5,2552.4,0.39172]
[1726828683924,1.58411,2552.5,2552.4,0.39172]
[1726828684227,1.1924,2552.5,2552.4,0.39172]
[1726828684430,1.58411,2552.5,2552.4,0.39172]
[1726828685226,1.1924,2552.5,2552.4,0.39172]
[1726828685625,0.39169,2552.7,2552.6,0.39169]
[1726828685828,0.39169,2552.7,2552.6,3.45169]
[1726828686125,0.39169,2552.7,2552.6,3.06]
[1726828686430,0.39169,2552.7,2552.6,3.45169]
[1726828686822,1.17947,2552.8,2552.6,3.45169]
[1726828687026,0.39168,2552.7,2552.6,3.45169]
[1726828687528,0.7878,2552.8,2552.7,0.39168]
[1726828687725,0.4122,2553.0,2552.9,0.39165]
[1726828687924,0.4122,2553.0,2552.9,3.45165]
[1726828688316,3.2078,2553.2,2553.1,0.39162]
[1726828688532,0.82,2553.3,2553.2,0.3916]
[1726828689123,0.82,2553.3,2553.1,3.06]
[1726828689124,0.3916,2553.2,2553.1,3.06]
[1726828690123,0.3916,2553.2,2553.1,3.45162]
[1726828690523,0.82,2553.3,2553.2,0.3916]
[1726828691720,3.2078,2553.5,2553.4,0.39157]
[1726828691927,0.39151,2553.8,2553.6,0.39153]
[1726828691928,1.19982,2553.8,2553.6,0.39153]
[1726828692122,1.19982,2553.8,2553.7,3.06]
[1726828692321,0.39152,2553.8,2553.7,3.06]
[1726828692524,0.39154,2553.7,2553.5,3.45155]
[1726828693127,3.2078,2553.6,2553.3,3.06]
[1726828693338,0.39159,2553.3,2553.1,3.436]
[1726828693634,0.39159,2553.3,2552.9,6.65944]
[1726828693635,0.375,2553.2,2552.9,6.65944]
[1726828693830,0.39163,2553.0,2552.9,6.2678]
[1726828694141,0.39163,2553.0,2552.9,0.39165]
[1726828694434,0.3865,2553.1,2552.9,0.39165]
[1726828694623,0.3865,2553.1,2552.6,7.258]
[1726828694826,3.2078,2552.9,2552.6,3.06]
[1726828695129,0.39167,2552.8,2552.7,0.39167]
[1726828695426,1.36556,2553.1,2552.8,0.39166]
[1726828695427,0.39166,2552.9,2552.8,0.39166]
[1726828695826,1.36556,2553.1,2552.7,0.39167]
[1726828695827,0.39167,2552.8,2552.7,0.39167]
[1726828696027,0.39166,2552.8,2552.7,0.39167]
[1726828696228,0.39166,2552.9,2552.8,0.39165]
[1726828696726,0.39166,2552.8,2552.7,0.39167]
[1726828697228,0.39167,2552.8,2552.7,0.39167]
[1726828698339,0.39166,2552.9,2552.8,0.39165]
[1726828698525,0.3865,2553.1,2553.0,0.39163]
[1726828699630,3.97441,2553.2,2553.1,0.39162]
[1726828700229,3.5828,2553.2,2553.1,0.39162]
[1726828700629,0.375,2553.2,2553.1,0.39162]
[1726828701030,0.39158,2553.4,2553.3,0.39158]
[1726828701636,4.0034,2553.5,2553.3,0.39158]
[1726828701940,0.97879,2553.8,2553.4,3.06]
[1726828701941,3.2078,2553.8,2553.4,3.06]
[1726828702143,4.01282,2553.8,2553.6,3.45153]
[1726828702433,0.39152,2553.7,2553.5,0.39154]
[1726828702639,4.01282,2553.8,2553.6,0.39153]
[1726828703636,3.6213,2553.8,2553.4,3.06]
[1726828703936,0.39153,2553.7,2553.5,0.39156]
[1726828704135,4.01282,2553.8,2553.6,0.39154]
[1726828704342,0.4135,2553.8,2553.6,3.06]
[1726828704538,0.4144,2554.0,2553.9,0.39149]
[1726828704834,0.4144,2554.0,2553.7,3.45152]
[1726828705033,0.4144,2554.0,2553.7,3.06]
[1726828705034,0.80589,2554.0,2553.7,3.06]
[1726828705240,0.80589,2554.0,2553.8,0.3915]
[1726828705739,0.3915,2553.9,2553.7,3.45152]
[1726828705929,0.80589,2554.0,2553.8,0.39151]
[1726828706239,0.4144,2554.0,2553.7,3.06]
[1726828706439,0.4144,2554.0,2553.8,0.3915]
[1726828706734,0.39148,2554.0,2553.7,3.06]
[1726828706932,0.39148,2554.0,2553.8,0.3915]
[1726828707142,3.2078,2554.3,2553.5,3.2078]
[1726828707443,0.8027,2553.9,2553.6,0.39154]
[1726828707635,0.8027,2553.9,2553.5,3.45155]
[1726828707831,0.97879,2553.8,2553.4,0.4044]
[1726828708227,0.39154,2553.7,2553.4,0.4044]
[1726828708431,1.78147,2553.9,2553.5,0.39155]
[1726828708743,0.39157,2553.4,2553.3,0.39158]
[1726828708931,0.39157,2553.4,2553.2,0.3802]
[1726828709129,0.39156,2553.5,2553.3,0.39158]
[1726828709345,0.4018,2553.4,2553.1,3.06]
[1726828709537,0.3916,2553.3,2553.1,3.06]
[1726828709733,3.9859,2553.4,2553.1,3.06]
[1726828709939,4.37748,2553.4,2553.1,3.06]
[1726828710134,0.39159,2553.3,2553.2,0.39159]
[1726828710337,0.39159,2553.3,2553.1,3.06]
[1726828710529,1.16968,2553.4,2553.3,0.39159]
[1726828710730,0.39159,2553.3,2553.2,0.39159]
[1726828711236,0.39166,2552.8,2552.7,0.39168]
[1726828711439,0.39169,2552.7,2552.5,3.06]
[1726828711740,4.18688,2553.1,2552.8,0.39166]
[1726828711941,3.2078,2553.1,2552.8,0.39165]
[1726828712244,3.2078,2553.1,2552.9,3.06]
[1726828712546,3.59943,2553.1,2552.9,3.45164]
[1726828712839,3.2078,2553.1,2553.0,0.39163]
[1726828713439,0.7781,2553.4,2553.3,0.39159]
[1726828714743,0.7781,2553.4,2553.2,0.39159]
[1726828714744,1.16967,2553.4,2553.2,0.39159]
[1726828714943,1.16967,2553.4,2553.1,0.3762]
[1726828715143,1.16967,2553.4,2553.2,0.3916]
[1726828715536,0.7781,2553.4,2553.0,0.405]
[1726828715734,0.39161,2553.2,2553.0,0.39162]
[1726828716642,0.39161,2553.2,2553.1,0.39162]
[1726828716845,0.39161,2553.2,2553.0,0.39162]
[1726828717152,0.3916,2553.3,2553.1,0.39162]
[1726828719353,0.3916,2553.3,2553.1,0.39161]
[1726828719546,1.16968,2553.4,2553.2,0.3916]
[1726828719747,1.16968,2553.4,2552.8,4.41335]
[1726828719748,1.16968,2553.4,2552.9,0.97911]
[1726828720044,0.7781,2553.4,2553.0,0.97909]
[1726828720245,0.7781,2553.4,2553.3,0.39159]
[1726828720750,3.2078,2553.6,2553.5,0.39156]
[1726828720937,0.39153,2553.7,2553.6,0.39154]
[1726828720938,0.3841,2553.7,2553.6,0.39154]
[1726828721136,0.77563,2553.7,2553.5,0.39155]
[1726828721345,0.77563,2553.7,2553.6,0.39154]
[1726828721554,0.77563,2553.7,2553.3,0.4019]
[1726828721849,0.77563,2553.7,2553.5,0.39155]
[1726828722035,0.77563,2553.7,2553.6,0.39154]
[1726828722240,0.3841,2553.7,2553.6,0.39154]
[1726828722957,0.3841,2553.7,2553.6,4.4304]
[1726828723251,0.3841,2553.7,2553.6,3.45154]
[1726828728052,3.2078,2554.0,2553.8,0.3915]
[1726828728250,0.3937,2553.9,2553.8,0.3915]
[1726828728756,4.3097,2553.9,2553.8,0.3915]
[1726828729144,4.70119,2553.9,2553.8,0.3915]
[1726828729345,4.7057,2553.9,2553.8,0.3915]
[1726828729642,0.3937,2553.9,2553.8,0.3915]
[1726828730239,4.70119,2553.9,2553.8,0.3915]
[1726828730445,4.3097,2553.9,2553.8,0.3915]
[1726828731548,4.70119,2553.9,2553.8,0.3915]
[1726828731853,0.3937,2553.9,2553.8,0.3915]
[1726828733347,3.2078,2554.0,2553.9,0.39149]
[1726828733857,0.396,2554.2,2554.1,0.39146]
[1726828734054,3.59921,2554.5,2554.3,0.39143]
[1726828734055,0.3818,2554.4,2554.3,0.39143]
[1726828734757,0.3909,2554.6,2554.5,0.3914]
[1726828734959,3.2078,2554.8,2554.7,0.39137]
[1726828735255,0.3909,2554.9,2554.8,0.39136]
[1726828735464,0.3909,2554.9,2554.5,3.06]
[1726828735752,0.3909,2554.9,2554.0,0.39147]
[1726828735753,3.06,2554.6,2554.0,0.39147]
[1726828735955,0.39149,2554.0,2553.5,3.45155]
[1726828736144,1.73754,2554.5,2553.3,6.2678]
[1726828736145,0.3868,2553.9,2553.3,6.2678]
[1726828736349,0.3784,2553.8,2553.4,0.4095]
[1726828736552,0.3784,2553.8,2553.6,0.39154]
[1726828736750,0.3784,2553.8,2553.5,3.45155]
[1726828737854,0.3784,2553.8,2553.5,3.06]
[1726828738155,0.3784,2553.8,2553.5,3.45154]
[1726828738557,0.3784,2553.8,2553.6,0.39154]
[1726828738754,3.2078,2554.1,2553.8,0.39151]
[1726828738955,3.2078,2554.1,2553.9,0.3939]
[1726828739155,0.39143,2554.3,2553.9,0.3939]
[1726828739563,3.9726,2554.4,2553.9,0.78539]
[1726828739762,0.39143,2554.3,2553.9,0.3939]
[1726828740156,0.39145,2554.2,2553.9,0.3939]
[1726828740360,0.39144,2554.3,2553.9,0.3939]
[1726828740765,7.0326,2554.4,2553.9,0.3939]
[1726828740766,0.39145,2554.2,2553.9,0.3939]
[1726828741165,0.39144,2554.3,2553.9,0.3939]
[1726828741358,7.0326,2554.4,2553.8,0.3915]
[1726828741359,0.39145,2554.2,2553.8,0.3915]
[1726828742564,0.39145,2554.2,2553.9,0.39149]
[1726828742767,3.06,2554.0,2553.6,0.4028]
[1726828742969,3.06,2554.0,2552.9,2.04826704]
[1726828742970,3.2078,2553.7,2553.0,0.3931]
[1726828743165,0.39158,2553.4,2553.1,0.39161]
[1726828743470,0.4122,2553.3,2553.2,0.3916]
[1726828743960,0.4122,2553.3,2553.0,0.4028]
[1726828744164,0.4122,2553.3,2553.2,0.3916]
[1726828744476,0.3762,2553.9,2553.3,0.39158]
[1726828744766,0.78285,2553.6,2553.2,0.39159]
[1726828745069,0.78285,2553.6,2553.3,0.39158]
[1726828745271,0.39156,2553.5,2553.2,0.3916]
[1726828745466,0.3913,2553.6,2553.2,0.3916]
[1726828745671,0.3909,2553.4,2553.3,0.39159]
[1726828746268,0.39152,2553.8,2553.4,0.39156]
[1726828746566,0.3909,2553.7,2553.5,0.39155]
[1726828746959,0.3909,2553.7,2553.4,0.814]
[1726828747162,0.39156,2553.5,2553.2,3.45159]
[1726828747465,0.39156,2553.5,2553.3,0.39158]
[1726828747664,0.39155,2553.6,2553.3,0.39159]
[1726828747863,0.39157,2553.4,2553.2,3.06]
[1726828748059,0.39156,2553.5,2553.2,3.45159]
[1726828748565,0.39155,2553.6,2553.3,0.39158]
[1726828749065,3.5987,2553.7,2553.4,0.39157]
[1726828749378,3.99023,2553.7,2553.4,0.39156]
[1726828749582,0.39155,2553.6,2553.4,0.39156]
[1726828750579,0.3909,2553.7,2553.5,0.39156]
[1726828750772,0.78243,2553.7,2553.5,0.39154]
[1726828750970,0.39154,2553.6,2553.4,3.45156]
[1726828751172,0.3909,2553.7,2553.6,0.39154]
[1726828751482,0.39154,2553.6,2553.4,3.45156]
[1726828751681,0.39154,2553.6,2553.5,0.41]
[1726828752982,0.39154,2553.6,2553.4,3.06]
[1726828752983,0.3909,2553.7,2553.4,3.45156]
[1726828753182,0.39155,2553.6,2553.4,0.39156]
[1726828753478,0.39156,2553.5,2553.4,0.39156]
[1726828754087,3.5987,2553.7,2553.3,0.41]
[1726828754281,0.3909,2553.7,2553.6,3.45154]
[1726828754686,0.3913,2553.8,2553.7,0.39152]
[1726828754983,0.78281,2553.8,2553.7,0.39152]
[1726828755173,0.78281,2553.8,2553.7,0.4071]
[1726828755377,0.3913,2553.8,2553.5,0.77134]
[1726828755579,0.39156,2553.5,2553.4,0.4071]
[1726828755888,1.3701,2553.8,2553.2,3.4646]
[1726828756084,1.3701,2553.8,2553.4,0.39156]
[1726828756085,0.39156,2553.5,2553.4,0.39156]
[1726828756280,0.39155,2553.6,2553.2,3.4646]
[1726828756480,0.39156,2553.5,2553.4,0.39156]
[1726828757383,0.39155,2553.6,2553.5,0.39155]
[1726828757583,0.39155,2553.6,2553.2,3.4646]
[1726828757584,3.2078,2553.7,2553.2,3.4646]
[1726828757789,0.39155,2553.6,2553.2,3.4646]
[1726828757986,3.2078,2553.7,2553.4,0.39156]
[1726828757987,0.39156,2553.5,2553.4,0.39156]
[1726828758185,0.3913,2553.8,2553.4,3.06]
[1726828758386,0.39153,2553.7,2553.5,0.77994]
[1726828758689,0.39154,2553.6,2553.5,0.77994]
[1726828759091,0.39154,2553.7,2553.5,0.77994]
[1726828759296,0.39154,2553.6,2553.5,0.77994]
[1726828760294,0.39154,2553.6,2553.5,0.3884]
[1726828761395,0.3913,2553.8,2553.5,0.3884]
[1726828761696,0.39154,2553.7,2553.6,0.39154]
[1726828761899,0.3913,2553.8,2553.5,0.3884]
[1726828762092,0.39154,2553.7,2553.6,0.39154]
[1726828762288,0.39154,2553.6,2553.5,0.77994]
[1726828763586,0.39153,2553.7,2553.6,0.39153]
[1726828763782,1.37009,2553.8,2553.5,0.3884]
[1726828764000,0.39154,2553.7,2553.6,0.39153]
[1726828764590,0.39154,2553.6,2553.5,0.77995]
[1726828765394,0.39156,2553.5,2553.4,3.06]
[1726828765584,0.39157,2553.4,2553.3,0.3923]
[1726828765893,0.39157,2553.4,2553.3,0.78388]
[1726828767995,0.3916,2553.3,2553.2,0.39159]